fUST/lending_fUST_20250905
["ID","MTS","AMOUNT","RATE_DAILY","PERIOD"]
[383585538,1757010642402,-701.05823479,0.00018723,2]
[383585539,1757010642411,-3000.0,0.00018735,2]
[383585540,1757010642424,-3000.0,0.00018735,2]
[383585541,1757010642433,-3141.99683888,0.00018756,2]
[383585542,1757010642443,-151.0,0.00018756,2]
[383585543,1757010642452,-2000.0,0.00018786,2]
[383585544,1757010642462,-500.41949569,0.00018795,2]
[383585545,1757010642472,-500.24178841,0.00018795,2]
[383585546,1757010642482,-500.0,0.00018795,2]
[383585548,1757010642492,-500.21008796,0.00018795,2]
[383585549,1757010642502,-500.39493446,0.00018795,2]
[383585550,1757010642511,-500.23826971,0.00018795,2]
[383585551,1757010642522,-500.0,0.00018795,2]
[383585554,1757010642531,-500.0,0.00018795,2]
[383585556,1757010642542,-500.39250917,0.00018795,2]
[383585558,1757010642551,-500.32732354,0.00018795,2]
[383585560,1757010642561,-460.0,0.00018813,2]
[383585562,1757010642571,-480.0,0.00018839,2]
[383585564,1757010642580,-302.48582854,0.000189,2]
[383585566,1757010642589,-302.45563732,0.000189,2]
[383585568,1757010642598,-151.0,0.00018904,2]
[383585570,1757010642608,-834.44,0.00018904,2]
[383585572,1757010642617,-3500.0,0.00018924,2]
[383585574,1757010642628,-2500.0,0.00018964,2]
[383585576,1757010642638,-3000.0,0.00018972,2]
[383585578,1757010642647,-4026.0,0.00019,2]
[383585580,1757010642656,-20812.65349452,0.00019063,7]
[383585582,1757010642666,-151.0,0.00019063,2]
[383585584,1757010642677,-260.41666667,0.0001907,7]
[383585586,1757010642687,-417.15472785,0.0001907,7]
[383585588,1757010642696,-530.40833076,0.0001907,7]
[383585590,1757010642705,-160.0,0.0001907,7]
[383585592,1757010642714,-501.25628053,0.00019086,2]
[383585594,1757010642723,-345.59209805,0.00019086,2]
[383585596,1757010642732,-302.48582854,0.00019089,2]
[383585598,1757010642741,-302.45563732,0.00019089,2]
[383585600,1757010642750,-2000.0,0.000191,2]
[383585602,1757010642759,-2740.82543934,0.000191,7]
[383585617,1757010643065,-7826.85733776,0.000191,7]
[383585618,1757010643077,-480.0,0.00019113,2]
[383585620,1757010643089,-250.0,0.00019176,2]
[383585621,1757010643099,-151.0,0.00019178,2]
[383585622,1757010643109,-834.44,0.00019178,2]
[383585623,1757010643120,-151.0,0.00019178,7]
[383585624,1757010643130,-151.0,0.00019178,7]
[383585625,1757010643140,-151.0,0.00019178,7]
[383585626,1757010643150,-151.0,0.00019178,7]
[383585627,1757010643160,-172.682135,0.00019178,7]
[383585628,1757010643172,-150.0,0.00019178,2]
[383585629,1757010643182,-1000.0,0.000192,2]
[383585630,1757010643192,-1000.0,0.000192,2]
[383585631,1757010643201,-1000.0,0.000192,2]
[383585632,1757010643211,-1000.0,0.000192,2]
[383585633,1757010643221,-1000.0,0.000192,2]
[383585634,1757010643231,-1000.0,0.000192,2]
[383585635,1757010643241,-1000.0,0.000192,2]
[383585636,1757010643251,-1000.0,0.000192,2]
[383585637,1757010643261,-1000.0,0.000192,2]
[383585638,1757010643271,-302.48582854,0.00019278,2]
[383585639,1757010643281,-302.45563732,0.00019278,2]
[383585640,1757010643290,-3500.0,0.00019283,2]
[383585641,1757010643300,-3500.0,0.00019283,2]
[383585642,1757010643310,-300.0,0.00019315,2]
[383585643,1757010643320,-151.0,0.00019334,2]
[383585644,1757010643330,-2170.83928576,0.00019334,2]
[383585645,1757010643340,-1000.0,0.00019343,2]
[383585646,1757010643350,-668.01430621,0.00019343,2]
[383585647,1757010643360,-1000.0,0.00019343,2]
[383585648,1757010643370,-560.0,0.00019361,2]
[383585649,1757010643380,-583.80792394,0.00019387,2]
[383585650,1757010643390,-160.0,0.00019422,6]
[383585651,1757010643400,-151.0,0.00019452,2]
[383585652,1757010643410,-834.44,0.00019452,2]
[383585653,1757010643422,-450.0,0.00019452,2]
[383585654,1757010643431,-302.48582854,0.00019467,2]
[383585655,1757010643441,-302.45563732,0.00019467,2]
[383585656,1757010643451,-4000.0,0.00019472,2]
[383585657,1757010643461,-3000.0,0.00019512,2]
[383585658,1757010643471,-666.77381101,0.00019589,2]
[383585659,1757010643481,-302.48582854,0.00019656,2]
[383585660,1757010643490,-302.45563732,0.00019656,2]
[383585661,1757010643500,-834.44,0.00019726,2]
[383585662,1757010643510,-2000.0,0.00019726,2]
[383585663,1757010643520,-500.0,0.0001979,2]
[383585664,1757010643530,-4000.0,0.00019831,2]
[383585665,1757010643539,-4000.0,0.00019831,2]
[383585666,1757010643549,-453.72874281,0.00019845,4]
[383585667,1757010643559,-392.30006758,0.00019845,4]
[383585668,1757010643568,-864.0,0.00019869,20]
[383585669,1757010643578,-500.40287669,0.00019891,2]
[383585670,1757010643587,-1500.0,0.00019891,2]
[383585671,1757010643597,-11791.02678944,0.000199,2]
[383585672,1757010643607,-660.0,0.00019908,2]
[383585673,1757010643617,-501.3946606,0.00019913,2]
[383585674,1757010643627,-500.0,0.00019913,2]
[383585675,1757010643636,-150.0,0.0002,2]
[383585676,1757010643646,-8004.17,0.0002,2]
[383585677,1757010643655,-1715.0,0.0002,7]
[383585678,1757010643664,-160.0,0.0002,3]
[383585679,1757010643677,-1000.18,0.0002,7]
[383585680,1757010643686,-554.88147103,0.0002,2]
[383585681,1757010643696,-200.0,0.0002,7]
[383585682,1757010643705,-1000.0,0.0002,7]
[383585683,1757010643715,-151.25801289,0.0002,2]
[383585684,1757010643724,-701.05823479,0.0002,2]
[383585685,1757010643734,-151.0,0.0002,2]
[383585686,1757010643743,-300.0,0.0002,2]
[383585687,1757010643753,-834.49087036,0.0002,2]
[383585689,1757010643763,-183.80897536,0.0002,2]
[383585690,1757010643773,-4500.0,0.0002002,2]
[383585691,1757010643782,-453.72874281,0.00020034,4]
[383585692,1757010643791,-1265.08905972,0.0002006,2]
[383585693,1757010643801,-3000.0,0.00020068,2]
[383585695,1757010643811,-6404.0,0.000201,5]
[383585697,1757010643819,-2000.0,0.000201,2]
[383585699,1757010643829,-780.94185,0.00020187,2]
[383585701,1757010643838,-151.0,0.000202,3]
[383585703,1757010643847,-151.0,0.000202,3]
[383585704,1757010643857,-112.42044866,0.00020223,4]
[383585715,1757010643951,-500.0,0.00016099,2]
[383585717,1757010643960,-500.0,0.00016099,2]
[383585719,1757010643969,-500.0,0.00016099,2]
[383585721,1757010643979,-525.55511287,0.00016099,2]
[383585722,1757010643988,-500.0,0.00016099,2]
[383585723,1757010643997,-590.0330949,0.00016438,2]
[383585724,1757010644008,-341.30829415,0.00020223,4]
[383585725,1757010644018,-160.0,0.00020317,7]
[383585726,1757010644027,-1095.12275458,0.00020338,2]
[383585727,1757010644040,-188.2076651,0.00020356,2]
[383585728,1757010644049,-153.0,0.00020356,2]
[383585729,1757010644059,-153.0,0.00020356,2]
[383585730,1757010644068,-188.2076651,0.00020356,2]
[383585731,1757010644079,-153.0,0.00020356,2]
[383585732,1757010644089,-188.2076651,0.00020356,2]
[383585733,1757010644100,-153.0,0.00020356,2]
[383585734,1757010644110,-188.2076651,0.00020356,2]
[383585735,1757010644120,-153.0,0.00020356,2]
[383585736,1757010644130,-4500.0,0.00020379,2]
[383585737,1757010644140,-4500.0,0.00020379,2]
[383585738,1757010644149,-453.72874281,0.00020412,4]
[383585739,1757010644159,-2000.0,0.00020439,2]
[383585740,1757010644170,-760.0,0.00020456,2]
[383585741,1757010644180,-1000.0,0.00020461,2]
[383585742,1757010644294,-184531.83803949,0.000205,2]
[383585743,1757010644319,-700.000001,0.000205,2]
[383585747,1757010647405,-17411.934289,0.000205,2]
[383585748,1757010647521,-480.0,0.00016099,2]
[383585749,1757010647531,-500.0,0.00016099,2]
[383585750,1757010647541,-500.0,0.00016099,2]
[383585751,1757010647551,-480.0,0.00016373,2]
[383585752,1757010647561,-480.0,0.00016647,2]
[383585753,1757010647571,-480.0,0.00016921,2]
[383585754,1757010647581,-480.0,0.00017195,2]
[383585755,1757010647591,-480.0,0.00017469,2]
[383585756,1757010647601,-1.6376585,0.00017743,2]
[383585757,1757010647662,-480.0,0.00013698,2]
[383585758,1757010647672,-478.3623415,0.00017743,2]
[383585759,1757010647684,-480.0,0.00018017,2]
[383585760,1757010647694,-946.0555755,0.000205,2]
[383585761,1757010649348,480.0,0.00013561,2]
[383585762,1757010657164,480.0,0.00013561,2]
[383585763,1757010679608,1020.0,0.00013561,2]
[383585981,1757011596115,480.0,0.00013561,2]
[383585982,1757011600477,983.83,0.00012329,2]
[383585983,1757011604414,480.0,0.00013561,2]
[383585984,1757011611066,819.85,0.00012329,2]
[383585987,1757011619879,480.0,0.00013561,2]
[383585988,1757011621536,683.21,0.00012329,2]
[383585989,1757011627726,480.0,0.00013561,2]
[383585990,1757011631975,569.34,0.00012329,2]
[383585991,1757011642832,569.34,0.00012329,2]
[383585992,1757011643316,702.847665,0.00013562,2]
[383585993,1757011651103,702.847665,0.00013562,2]
[383585994,1757011653576,474.45,0.00012329,2]
[383585995,1757011667014,702.847665,0.00013562,2]
[383585996,1757011675287,702.847665,0.00013562,2]
[383585997,1757011691558,702.847665,0.00013562,2]
[383585998,1757011699384,702.847665,0.00013562,2]
[383585999,1757011714924,702.847665,0.00013562,2]
[383586000,1757011722740,702.847665,0.00013562,2]
[383586001,1757011738149,702.847665,0.00013562,2]
[383586002,1757011745963,702.847665,0.00013562,2]
[383586003,1757011761676,702.847665,0.00013562,2]
[383586004,1757011784596,702.847665,0.00013562,2]
[383586005,1757011807600,702.847665,0.00013562,2]
[383586006,1757011809873,200.33,0.00012329,2]
[383586007,1757011820329,166.94,0.00012329,2]
[383586008,1757011830994,834.71,0.00012329,2]
[383586009,1757011831359,702.847665,0.00013562,2]
[383586833,1757011843464,-702.847665,0.00013699,2]
[383586835,1757011843474,-300.0,0.00014128,2]
[383586837,1757011843483,-1200.0,0.00014128,2]
[383586839,1757011843493,-480.0,0.00014129,2]
[383586841,1757011843504,-480.0,0.00014129,2]
[383586842,1757011843514,-541.52,0.00014129,2]
[383586844,1757011843525,-480.0,0.00014129,2]
[383586846,1757011843535,-480.0,0.00014129,2]
[383586849,1757011843545,-467.26,0.00014129,2]
[383586851,1757011843554,-500.0,0.00014129,2]
[383586853,1757011843564,-500.0,0.00014129,2]
[383586854,1757011843573,-500.0,0.00014129,2]
[383586857,1757011843583,-301.78245724,0.00014129,2]
[383586859,1757011843592,-500.0,0.00014129,2]
[383586860,1757011843601,-329.09021539,0.00014129,2]
[383586861,1757011843610,-500.0,0.00014129,2]
[383586862,1757011843620,-500.0,0.00014129,2]
[383586864,1757011843629,-500.0,0.00014129,2]
[383586865,1757011843638,-321.55268412,0.00014129,2]
[383586867,1757011843647,-500.0,0.00014129,2]
[383586869,1757011843657,-415.30319836,0.00014129,2]
[383586871,1757011843666,-457.2676468,0.00014129,2]
[383586873,1757011843675,-632.88910111,0.00014129,2]
[383586875,1757011843685,-287.87220898,0.00014129,2]
[383586877,1757011843697,-500.0,0.00014129,2]
[383586879,1757011843707,-500.0,0.00014129,2]
[383586881,1757011843716,-500.0,0.00014129,2]
[383586883,1757011843726,-480.0,0.0001413,2]
[383586885,1757011843737,-480.0,0.0001413,2]
[383586887,1757011843747,-392.06081918,0.0001413,2]
[383586889,1757011843757,-480.0,0.0001413,2]
[383586891,1757011843766,-177.98,0.0001413,2]
[383586893,1757011843775,-480.0,0.0001413,2]
[383586895,1757011843785,-480.0,0.0001413,2]
[383586897,1757011843795,-480.0,0.0001413,2]
[383586899,1757011843805,-480.0,0.0001413,2]
[383586901,1757011843814,-480.0,0.0001413,2]
[383586903,1757011843823,-480.0,0.0001413,2]
[383586905,1757011843833,-480.0,0.0001413,2]
[383586907,1757011843844,-480.0,0.0001413,2]
[383586923,1757011843984,-480.0,0.0001413,2]
[383586926,1757011843999,-480.0,0.0001413,2]
[383586928,1757011844008,-480.0,0.0001413,2]
[383586930,1757011844018,-480.0,0.0001413,2]
[383586932,1757011844027,-480.0,0.0001413,2]
[383586934,1757011844037,-480.0,0.0001413,2]
[383586936,1757011844046,-480.0,0.0001413,2]
[383586938,1757011844055,-485.02538409,0.0001413,2]
[383586940,1757011844064,-480.0,0.0001413,2]
[383586942,1757011844074,-480.0,0.0001413,2]
[383586944,1757011844083,-480.0,0.0001413,2]
[383586946,1757011844093,-480.0,0.0001413,2]
[383586948,1757011844102,-480.0,0.0001413,2]
[383586950,1757011844111,-480.0,0.0001413,2]
[383586952,1757011844121,-480.0,0.0001413,2]
[383586954,1757011844130,-362.83760743,0.0001413,2]
[383586956,1757011844140,-480.0,0.0001413,2]
[383586958,1757011844150,-480.0,0.0001413,2]
[383586960,1757011844160,-480.0,0.0001413,2]
[383586962,1757011844169,-480.0,0.0001413,2]
[383586964,1757011844179,-480.0,0.0001413,2]
[383586966,1757011844188,-271.24,0.0001413,2]
[383586968,1757011844197,-480.0,0.0001413,2]
[383586970,1757011844206,-480.0,0.0001413,2]
[383586972,1757011844215,-480.0,0.0001413,2]
[383586974,1757011844225,-480.0,0.0001413,2]
[383586976,1757011844234,-480.0,0.0001413,2]
[383586978,1757011844244,-480.0,0.0001413,2]
[383586980,1757011844253,-480.0,0.0001413,2]
[383586982,1757011844262,-480.0,0.0001413,2]
[383586984,1757011844272,-480.0,0.0001413,2]
[383586986,1757011844282,-480.0,0.0001413,2]
[383586988,1757011844291,-480.0,0.0001413,2]
[383586990,1757011844300,-511.50413312,0.0001413,2]
[383586992,1757011844310,-480.0,0.0001413,2]
[383586994,1757011844319,-480.0,0.0001413,2]
[383586996,1757011844328,-480.0,0.0001413,2]
[383586998,1757011844337,-480.0,0.0001413,2]
[383587000,1757011844348,-480.0,0.0001413,2]
[383587002,1757011844358,-480.0,0.0001413,2]
[383587004,1757011844367,-480.0,0.0001413,2]
[383587006,1757011844376,-480.0,0.0001413,2]
[383587008,1757011844385,-480.0,0.0001413,2]
[383587010,1757011844395,-480.0,0.0001413,2]
[383587012,1757011844404,-480.0,0.0001413,2]
[383587014,1757011844413,-480.0,0.0001413,2]
[383587016,1757011844422,-480.0,0.0001413,2]
[383587018,1757011844432,-480.0,0.0001413,2]
[383587020,1757011844441,-480.0,0.0001413,2]
[383587022,1757011844450,-480.0,0.0001413,2]
[383587024,1757011844460,-480.0,0.0001413,2]
[383587026,1757011844470,-161.64,0.0001413,2]
[383587028,1757011844480,-480.0,0.0001413,2]
[383587030,1757011844489,-480.0,0.0001413,2]
[383587032,1757011844499,-480.0,0.0001413,2]
[383587034,1757011844508,-480.0,0.0001413,2]
[383587036,1757011844518,-480.0,0.0001413,2]
[383587038,1757011844528,-383.14326529,0.0001413,2]
[383587040,1757011844537,-480.0,0.0001413,2]
[383587042,1757011844546,-480.0,0.0001413,2]
[383587044,1757011844555,-480.0,0.0001413,2]
[383587046,1757011844565,-480.0,0.0001413,2]
[383587048,1757011844574,-480.0,0.00014131,2]
[383587050,1757011844583,-480.0,0.00014131,2]
[383587052,1757011844592,-480.0,0.00014131,2]
[383587054,1757011844601,-480.0,0.00014131,2]
[383587056,1757011844611,-480.0,0.00014131,2]
[383587058,1757011844620,-480.0,0.00014131,2]
[383587060,1757011844631,-480.0,0.00014131,2]
[383587062,1757011844640,-480.0,0.00014131,2]
[383587064,1757011844649,-480.0,0.00014131,2]
[383587066,1757011844658,-480.0,0.00014131,2]
[383587068,1757011844668,-162.96,0.00014132,2]
[383587070,1757011844678,-572.76,0.00014132,2]
[383587072,1757011844688,-480.0,0.00014132,2]
[383587074,1757011844700,-480.0,0.00014132,2]
[383587076,1757011844709,-480.0,0.00014132,2]
[383587078,1757011844719,-246.32355375,0.00014132,2]
[383587080,1757011844728,-530.99,0.00014132,2]
[383587082,1757011844739,-480.0,0.00014132,2]
[383587084,1757011844748,-480.0,0.00014132,2]
[383587086,1757011844758,-480.0,0.00014132,2]
[383587088,1757011844768,-480.0,0.00014132,2]
[383587090,1757011844782,-548.49334807,0.00014132,2]
[383587092,1757011844791,-480.0,0.00014132,2]
[383587094,1757011844801,-480.0,0.00014132,2]
[383587097,1757011844810,-480.0,0.00014132,2]
[383587098,1757011844820,-480.0,0.00014132,2]
[383587100,1757011844829,-480.0,0.00014132,2]
[383587102,1757011844839,-480.0,0.00014132,2]
[383587104,1757011844848,-218.54856176,0.00014132,2]
[383587106,1757011844857,-480.0,0.00014132,2]
[383587109,1757011844867,-237.98271704,0.00014132,2]
[383587111,1757011844877,-480.0,0.00014132,2]
[383587113,1757011844886,-480.0,0.00014132,2]
[383587115,1757011844895,-480.0,0.00014132,2]
[383587117,1757011844904,-480.0,0.00014132,2]
[383587118,1757011844914,-480.0,0.00014132,2]
[383587121,1757011844924,-339.98635412,0.00014132,2]
[383587123,1757011844933,-480.0,0.00014132,2]
[383587125,1757011844943,-480.0,0.00014132,2]
[383587127,1757011844953,-10567.6827771,0.00014135,2]
[383587129,1757011844962,-160.0,0.00014339,2]
[383587131,1757011844972,-217.5338025,0.00014339,2]
[383587133,1757011844981,-210.86014821,0.0001434,2]
[383587135,1757011844991,-530.40833076,0.0001434,2]
[383587137,1757011845000,-160.0,0.0001434,2]
[383587139,1757011845010,-232.93421481,0.0001434,2]
[383587141,1757011845019,-417.15472785,0.0001434,2]
[383587143,1757011845030,-846.4110323,0.0001434,2]
[383587144,1757011845039,-160.0,0.0001434,2]
[383587146,1757011845050,-199.57783408,0.00014402,2]
[383587149,1757011845059,-500.0,0.00014402,2]
[383587151,1757011845069,-500.0,0.00014402,2]
[383587153,1757011845079,-500.0,0.00014402,2]
[383587154,1757011845090,-500.0,0.00014402,2]
[383587157,1757011845099,-500.0,0.00014402,2]
[383587159,1757011845110,-500.0,0.00014402,2]
[383587161,1757011845119,-500.0,0.00014402,2]
[383587163,1757011845130,-500.0,0.00014402,2]
[383587165,1757011845139,-500.0,0.00014402,2]
[383587166,1757011845148,-500.0,0.00014402,2]
[383587168,1757011845158,-447.16544688,0.00014402,2]
[383587171,1757011845168,-500.0,0.00014402,2]
[383587173,1757011845177,-461.34905878,0.00014403,2]
[383587175,1757011845186,-480.0,0.00014403,2]
[383587177,1757011845195,-480.0,0.00014403,2]
[383587179,1757011845204,-480.0,0.00014403,2]
[383587181,1757011845214,-480.0,0.00014404,2]
[383587183,1757011845224,-480.0,0.00014404,2]
[383587185,1757011845233,-315.26906731,0.00014404,2]
[383587187,1757011845243,-480.0,0.00014404,2]
[383587189,1757011845252,-480.0,0.00014404,2]
[383587191,1757011845261,-480.0,0.00014404,2]
[383587193,1757011845271,-480.0,0.00014404,2]
[383587195,1757011845280,-409.78,0.00014404,2]
[383587197,1757011845290,-423.53794407,0.00014404,2]
[383587199,1757011845299,-480.0,0.00014404,2]
[383587201,1757011845309,-480.0,0.00014404,2]
[383587203,1757011845318,-480.0,0.00014404,2]
[383587205,1757011845327,-480.0,0.00014404,2]
[383587207,1757011845337,-480.0,0.00014404,2]
[383587209,1757011845346,-480.0,0.00014404,2]
[383587211,1757011845355,-480.0,0.00014404,2]
[383587213,1757011845365,-212.86,0.00014404,2]
[383587215,1757011845374,-480.0,0.00014404,2]
[383587217,1757011845383,-480.0,0.00014404,2]
[383587219,1757011845392,-480.0,0.00014404,2]
[383587221,1757011845401,-480.0,0.00014404,2]
[383587223,1757011845411,-480.0,0.00014404,2]
[383587224,1757011845420,-480.0,0.00014404,2]
[383587226,1757011845429,-480.0,0.00014404,2]
[383587228,1757011845439,-480.0,0.00014404,2]
[383587230,1757011845448,-480.0,0.00014404,2]
[383587232,1757011845457,-480.0,0.00014404,2]
[383587234,1757011845467,-480.0,0.00014404,2]
[383587236,1757011845476,-480.0,0.00014404,2]
[383587238,1757011845485,-480.0,0.00014404,2]
[383587240,1757011845495,-480.0,0.00014404,2]
[383587242,1757011845505,-480.0,0.00014404,2]
[383587244,1757011845514,-480.0,0.00014404,2]
[383587247,1757011845525,-480.0,0.00014404,2]
[383587249,1757011845534,-480.0,0.00014404,2]
[383587251,1757011845544,-480.0,0.00014404,2]
[383587252,1757011845553,-480.0,0.00014404,2]
[383587255,1757011845564,-480.0,0.00014404,2]
[383587256,1757011845575,-480.0,0.00014405,2]
[383587258,1757011845585,-480.0,0.00014405,2]
[383587260,1757011845594,-480.0,0.00014405,2]
[383587262,1757011845604,-480.0,0.00014405,2]
[383587265,1757011845614,-480.0,0.00014405,2]
[383587267,1757011845624,-480.0,0.00014405,2]
[383587269,1757011845636,-480.0,0.00014405,2]
[383587271,1757011845645,-480.0,0.00014406,2]
[383587273,1757011845654,-480.0,0.00014406,2]
[383587275,1757011845664,-480.0,0.00014406,2]
[383587277,1757011845674,-480.0,0.00014406,2]
[383587279,1757011845682,-300.0,0.00014414,2]
[383587281,1757011845694,-300.0,0.00014414,2]
[383587283,1757011845704,-300.0,0.00014414,2]
[383587285,1757011845714,-300.0,0.00014414,2]
[383587287,1757011845724,-300.0,0.00014414,2]
[383587289,1757011845733,-300.0,0.00014414,2]
[383587291,1757011845743,-300.0,0.00014414,2]
[383587293,1757011845753,-300.0,0.00014414,2]
[383587295,1757011845762,-300.0,0.00014414,2]
[383587297,1757011845772,-300.0,0.00014414,2]
[383587299,1757011845782,-300.0,0.00014414,2]
[383587301,1757011845791,-300.0,0.00014414,2]
[383587303,1757011845800,-300.0,0.00014414,2]
[383587305,1757011845809,-300.0,0.00014414,2]
[383587307,1757011845818,-300.0,0.00014414,2]
[383587310,1757011845827,-480.0,0.00014677,2]
[383587312,1757011845836,-480.0,0.00014677,2]
[383587314,1757011845845,-480.0,0.00014677,2]
[383587316,1757011845855,-481.24843507,0.00014678,2]
[383587318,1757011845863,-202.86,0.00014678,2]
[383587320,1757011845873,-328.43529772,0.00014678,2]
[383587322,1757011845882,-480.0,0.00014678,2]
[383587324,1757011845892,-480.0,0.00014678,2]
[383587326,1757011845901,-480.0,0.00014678,2]
[383587328,1757011845911,-480.0,0.00014678,2]
[383587330,1757011845920,-480.0,0.00014678,2]
[383587332,1757011845930,-480.0,0.00014678,2]
[383587334,1757011845940,-480.0,0.00014678,2]
[383587336,1757011845950,-480.0,0.00014678,2]
[383587338,1757011845959,-480.0,0.00014678,2]
[383587340,1757011845969,-480.0,0.00014678,2]
[383587342,1757011845980,-480.0,0.00014678,2]
[383587344,1757011845990,-480.0,0.00014678,2]
[383587347,1757011845999,-480.0,0.00014678,2]
[383587349,1757011846009,-480.0,0.00014678,2]
[383587350,1757011846018,-284.63083601,0.00014678,2]
[383587353,1757011846029,-480.0,0.00014678,2]
[383587354,1757011846038,-480.0,0.00014678,2]
[383587356,1757011846047,-480.0,0.00014678,2]
[383587358,1757011846057,-480.0,0.00014678,2]
[383587360,1757011846066,-480.0,0.00014678,2]
[383587362,1757011846076,-480.0,0.00014678,2]
[383587364,1757011846085,-480.0,0.00014678,2]
[383587366,1757011846095,-480.0,0.00014678,2]
[383587368,1757011846104,-480.0,0.00014678,2]
[383587370,1757011846113,-520.0165151,0.00014679,2]
[383587373,1757011846123,-480.0,0.00014679,2]
[383587375,1757011846132,-480.0,0.00014679,2]
[383587377,1757011846142,-154.8447912,0.00014679,2]
[383587379,1757011846151,-480.0,0.00014679,2]
[383587381,1757011846160,-480.0,0.00014679,2]
[383587383,1757011846170,-480.0,0.00014679,2]
[383587385,1757011846180,-600.0,0.00014701,2]
[383587387,1757011846189,-500.0,0.00014932,2]
[383587389,1757011846198,-500.0,0.00014944,2]
[383587391,1757011846207,-480.0,0.00014951,2]
[383587393,1757011846216,-480.0,0.00014951,2]
[383587395,1757011846226,-480.0,0.00014951,2]
[383587397,1757011846236,-325.62004558,0.00014952,2]
[383587399,1757011846245,-480.0,0.00014952,2]
[383587401,1757011846254,-480.0,0.00014952,2]
[383587403,1757011846265,-480.0,0.00014952,2]
[383587405,1757011846275,-379.22277158,0.00014952,2]
[383587407,1757011846285,-480.0,0.00014952,2]
[383587409,1757011846294,-170.27943266,0.00014952,2]
[383587411,1757011846304,-480.0,0.00014952,2]
[383587413,1757011846314,-480.0,0.00014952,2]
[383587415,1757011846323,-480.0,0.00014952,2]
[383587417,1757011846333,-480.0,0.00014952,2]
[383587421,1757011846343,-480.0,0.00014952,2]
[383587423,1757011846352,-480.0,0.00014952,2]
[383587426,1757011846362,-480.0,0.00014952,2]
[383587430,1757011846372,-480.0,0.00014952,2]
[383587433,1757011846381,-480.0,0.00014952,2]
[383587435,1757011846391,-480.0,0.00014952,2]
[383587438,1757011846400,-480.0,0.00014952,2]
[383587441,1757011846409,-480.0,0.00014952,2]
[383587444,1757011846419,-480.0,0.00014952,2]
[383587447,1757011846428,-480.0,0.00014952,2]
[383587450,1757011846438,-480.0,0.00014952,2]
[383587453,1757011846447,-480.0,0.00014952,2]
[383587456,1757011846457,-500.0,0.00014953,2]
[383587458,1757011846467,-500.0,0.00014953,2]
[383587460,1757011846477,-480.0,0.00014953,2]
[383587462,1757011846488,-480.0,0.00014953,2]
[383587464,1757011846500,-480.0,0.00014953,2]
[383587466,1757011846510,-480.0,0.00014953,2]
[383587468,1757011846519,-480.0,0.00014953,2]
[383587471,1757011846532,-500.0,0.00014962,2]
[383587472,1757011846551,-500.0,0.00014962,2]
[383587475,1757011846561,-500.0,0.00014962,2]
[383587477,1757011846571,-160.0,0.00015,2]
[383587479,1757011846580,-500.0,0.00015022,2]
[383587480,1757011846590,-500.0,0.00015022,2]